[Event "*** Titled Tuesday Blitz"]
[Site "Chess.com"]
[Date "2021.02.02"]
[Round "1"]
[White "JoliyRoger"]
[Black "nrvisakh"]
[Result "1-0"]
[WhiteElo "2410"]
[BlackElo "2730"]
[TimeControl "180+1"]
[EndTime "10:08:02 PST"]
[Termination "JoliyRoger won by resignation"]

1. Nf3 {[%clk 0:02:58.3]} 1... Nf6 {[%clk 0:02:35.6]} 2. d4 {[%clk 0:02:57.4]}
2... g6 {[%clk 0:02:36.1]} 3. c4 {[%clk 0:02:57.4]} 3... Bg7 {[%clk 0:02:36.3]}
4. Nc3 {[%clk 0:02:57.9]} 4... O-O {[%clk 0:02:36.3]} 5. e4 {[%clk 0:02:57.7]}
5... d6 {[%clk 0:02:35.4]} 6. h3 {[%clk 0:02:58.2]} 6... e5 {[%clk 0:02:28]} 7.
d5 {[%clk 0:02:58.5]} 7... a5 {[%clk 0:02:27.9]} 8. Bg5 {[%clk 0:02:58.9]} 8...
Na6 {[%clk 0:02:22.6]} 9. Be2 {[%clk 0:02:53.4]} 9... Nc5 {[%clk 0:02:22.4]} 10.
Nd2 {[%clk 0:02:53.6]} 10... h6 {[%clk 0:02:12.4]} 11. Be3 {[%clk 0:02:51.9]}
11... Nh7 {[%clk 0:02:10]} 12. g4 {[%clk 0:02:50.2]} 12... f5 {[%clk 0:02:08.1]}
13. gxf5 {[%clk 0:02:49.7]} 13... gxf5 {[%clk 0:02:08.9]} 14. Rg1 {[%clk
0:02:50.3]} 14... f4 {[%clk 0:01:57.3]} 15. Bxc5 {[%clk 0:02:49.7]} 15... dxc5
{[%clk 0:01:58.1]} 16. Bg4 {[%clk 0:02:50.4]} 16... Kh8 {[%clk 0:01:51.8]} 17.
Bxc8 {[%clk 0:02:40.6]} 17... Qxc8 {[%clk 0:01:52.5]} 18. Qg4 {[%clk 0:02:41.2]}
18... Qxg4 {[%clk 0:01:49.7]} 19. hxg4 {[%clk 0:02:35.5]} 19... f3 {[%clk
0:01:47.7]} 20. Nd1 {[%clk 0:02:21.4]} 20... Ng5 {[%clk 0:01:44.7]} 21. Ne3
{[%clk 0:02:18.6]} 21... Rf4 {[%clk 0:01:44.2]} 22. Rg3 {[%clk 0:01:59.4]} 22...
Raf8 {[%clk 0:01:42.6]} 23. O-O-O {[%clk 0:01:57.2]} 23... Nxe4 {[%clk
0:01:41.4]} 24. Nxe4 {[%clk 0:01:57.4]} 24... Rxe4 {[%clk 0:01:42.1]} 25. g5
{[%clk 0:01:56.9]} 25... h5 {[%clk 0:01:38]} 26. Rh1 {[%clk 0:01:55.9]} 26...
Kg8 {[%clk 0:01:38]} 27. Kd2 {[%clk 0:01:49.6]} 27... Rd4+ {[%clk 0:01:36]} 28.
Kc2 {[%clk 0:01:49]} 28... h4 {[%clk 0:01:34.2]} 29. Rg4 {[%clk 0:01:42.4]}
29... Rff4 {[%clk 0:01:31.6]} 30. Rhxh4 {[%clk 0:01:40.6]} 30... a4 {[%clk
0:01:25.4]} 31. b3 {[%clk 0:01:38.8]} 31... axb3+ {[%clk 0:01:23.1]} 32. axb3
{[%clk 0:01:39.2]} 32... c6 {[%clk 0:01:17.8]} 33. dxc6 {[%clk 0:01:31.9]} 33...
bxc6 {[%clk 0:01:17.2]} 34. Rxf4 {[%clk 0:01:26.9]} 34... exf4 {[%clk
0:01:16.1]} 35. Nf1 {[%clk 0:01:27]} 35... Re4 {[%clk 0:01:01.4]} 36. Nd2 {[%clk
0:01:27.5]} 36... Re2 {[%clk 0:01:00.5]} 37. Rxf4 {[%clk 0:01:27.8]} 37... Rxf2
{[%clk 0:01:00.4]} 38. Rxf3 {[%clk 0:01:28.3]} 38... Rg2 {[%clk 0:01:00.3]} 39.
Rf5 {[%clk 0:01:24.5]} 39... Bd4 {[%clk 0:00:58.8]} 40. Kd3 {[%clk 0:01:23.9]}
40... Rg3+ {[%clk 0:00:55.5]} 41. Nf3 {[%clk 0:01:18.3]} 41... Kg7 {[%clk
0:00:52.1]} 42. Ke4 {[%clk 0:01:05.5]} 42... Kg6 {[%clk 0:00:21.5]} 43. Rf4
{[%clk 0:00:40]} 43... Rh3 {[%clk 0:00:13.1]} 44. b4 {[%clk 0:00:36.1]} 44...
Kh5 {[%clk 0:00:12.2]} 45. Nxd4 {[%clk 0:00:20.6]} 45... cxd4 {[%clk 0:00:11.3]}
46. Kxd4 {[%clk 0:00:21.3]} 46... Kxg5 {[%clk 0:00:09.7]} 47. Rf1 {[%clk
0:00:20.4]} 47... Rh6 {[%clk 0:00:05.9]} 48. Kc5 {[%clk 0:00:20.4]} 48... Kg4
{[%clk 0:00:04.1]} 49. b5 {[%clk 0:00:20.3]} 49... cxb5 {[%clk 0:00:03.5]} 50.
cxb5 {[%clk 0:00:20.9]} 50... Rh2 {[%clk 0:00:04]} 1-0

[Event "*** Titled Tuesday Blitz"]
[Site "Chess.com"]
[Date "2021.02.02"]
[Round "1"]
[White "Smirnov_Pavel"]
[Black "jens1102"]
[Result "1-0"]
[WhiteElo "2872"]
[BlackElo "2451"]
[TimeControl "180+1"]
[EndTime "10:08:03 PST"]
[Termination "Smirnov_Pavel won by checkmate"]

1. d4 {[%clk 0:03:00]} 1... Nf6 {[%clk 0:02:59.7]} 2. c4 {[%clk 0:03:00.9]} 2...
e6 {[%clk 0:03:00.2]} 3. Nf3 {[%clk 0:03:01.4]} 3... Bb4+ {[%clk 0:03:00.3]} 4.
Nbd2 {[%clk 0:03:01.5]} 4... O-O {[%clk 0:03:00.2]} 5. a3 {[%clk 0:03:02]} 5...
Be7 {[%clk 0:02:56.7]} 6. e4 {[%clk 0:03:01.8]} 6... d6 {[%clk 0:02:50.5]} 7.
Be2 {[%clk 0:03:00.6]} 7... Nc6 {[%clk 0:02:50.7]} 8. O-O {[%clk 0:02:59.4]}
8... e5 {[%clk 0:02:51]} 9. d5 {[%clk 0:02:59.3]} 9... Nb8 {[%clk 0:02:49.7]}
10. b4 {[%clk 0:02:59]} 10... a5 {[%clk 0:02:49.2]} 11. Bb2 {[%clk 0:02:58.3]}
11... Nbd7 {[%clk 0:02:46.8]} 12. Bc3 {[%clk 0:02:56.7]} 12... axb4 {[%clk
0:02:31.9]} 13. axb4 {[%clk 0:02:57.6]} 13... Rb8 {[%clk 0:02:30.4]} 14. Qc2
{[%clk 0:02:55.4]} 14... c6 {[%clk 0:02:30.3]} 15. dxc6 {[%clk 0:02:50.6]} 15...
bxc6 {[%clk 0:02:25.2]} 16. b5 {[%clk 0:02:51.5]} 16... Nc5 {[%clk 0:02:17]} 17.
Rfb1 {[%clk 0:02:47.2]} 17... Qc7 {[%clk 0:01:59.7]} 18. Ba5 {[%clk 0:02:36.7]}
18... Qd7 {[%clk 0:01:57.1]} 19. b6 {[%clk 0:02:27.4]} 19... Bb7 {[%clk
0:01:53.8]} 20. Bb4 {[%clk 0:02:24.3]} 20... Ne6 {[%clk 0:01:51.8]} 21. Ra7
{[%clk 0:02:22.1]} 21... c5 {[%clk 0:01:51.5]} 22. Bc3 {[%clk 0:02:19.2]} 22...
Qc6 {[%clk 0:01:51.1]} 23. Bd3 {[%clk 0:02:12.7]} 23... Nf4 {[%clk 0:01:51.3]}
24. Bf1 {[%clk 0:01:53.4]} 24... Nxe4 {[%clk 0:01:38.9]} 25. Rxb7 {[%clk
0:01:32.9]} 25... Nxd2 {[%clk 0:01:33.5]} 26. Rc7 {[%clk 0:01:12.7]} 26... Nxf3+
{[%clk 0:01:23.2]} 27. gxf3 {[%clk 0:01:13.6]} 27... Qe8 {[%clk 0:01:10.8]} 28.
b7 {[%clk 0:01:07.1]} 28... f5 {[%clk 0:00:57.4]} 29. Qd1 {[%clk 0:00:55.1]}
29... Rf6 {[%clk 0:00:53.4]} 30. Bd2 {[%clk 0:00:50.4]} 30... Ne6 {[%clk
0:00:48]} 31. Rc8 {[%clk 0:00:41.1]} 31... Rxc8 {[%clk 0:00:48.5]} 32. bxc8=Q
{[%clk 0:00:42]} 32... Qxc8 {[%clk 0:00:49.3]} 33. Be3 {[%clk 0:00:42.4]} 33...
f4 {[%clk 0:00:43.4]} 34. Bd2 {[%clk 0:00:37.8]} 34... Nd4 {[%clk 0:00:43.6]}
35. Bc3 {[%clk 0:00:37.8]} 35... Rg6+ {[%clk 0:00:43.5]} 36. Kh1 {[%clk
0:00:36.8]} 36... Bh4 {[%clk 0:00:41.6]} 37. Bxd4 {[%clk 0:00:28.4]} 37... cxd4
{[%clk 0:00:38.9]} 38. Bd3 {[%clk 0:00:25.8]} 38... Rh6 {[%clk 0:00:33.4]} 39.
Qg1 {[%clk 0:00:21.9]} 39... Rh5 {[%clk 0:00:20.3]} 40. Be4 {[%clk 0:00:19.6]}
40... Rg5 {[%clk 0:00:18.6]} 41. Qf1 {[%clk 0:00:19.6]} 41... g6 {[%clk
0:00:14.1]} 42. c5 {[%clk 0:00:19.5]} 42... Qxc5 {[%clk 0:00:12.3]} 43. Qh3
{[%clk 0:00:19.2]} 43... Bxf2 {[%clk 0:00:07.3]} 44. Rb8+ {[%clk 0:00:12.9]}
44... Kg7 {[%clk 0:00:07.9]} 45. Rb7+ {[%clk 0:00:09.7]} 45... Kf6 {[%clk
0:00:08.4]} 46. Rb1 {[%clk 0:00:08.9]} 46... h5 {[%clk 0:00:05.6]} 47. Qd7
{[%clk 0:00:06.7]} 47... d3 {[%clk 0:00:05.6]} 48. Qd8+ {[%clk 0:00:06.4]} 48...
Kg7 {[%clk 0:00:04.8]} 49. Qxg5 {[%clk 0:00:07.3]} 49... d2 {[%clk 0:00:05.2]}
50. Qxg6+ {[%clk 0:00:07.4]} 50... Kf8 {[%clk 0:00:05.2]} 51. Rb8+ {[%clk
0:00:06.9]} 51... Ke7 {[%clk 0:00:05.8]} 52. Qg7+ {[%clk 0:00:07]} 52... Ke6
{[%clk 0:00:05.5]} 53. Re8# {[%clk 0:00:07.9]} 1-0

[Event "*** Titled Tuesday Blitz"]
[Site "Chess.com"]
[Date "2021.02.02"]
[Round "1"]
[White "Piacramling"]
[Black "Korchmar_Vasiliy"]
[Result "0-1"]
[WhiteElo "2255"]
[BlackElo "2571"]
[TimeControl "180+1"]
[EndTime "10:08:07 PST"]
[Termination "Korchmar_Vasiliy won on time"]

1. Nf3 {[%clk 0:02:49.7]} 1... c5 {[%clk 0:02:58.6]} 2. c4 {[%clk 0:02:48.3]}
2... Nc6 {[%clk 0:02:57.3]} 3. d4 {[%clk 0:02:42.3]} 3... cxd4 {[%clk 0:02:56]}
4. Nxd4 {[%clk 0:02:42.3]} 4... Nf6 {[%clk 0:02:54.1]} 5. Nc3 {[%clk 0:02:41.7]}
5... Qb6 {[%clk 0:02:53.7]} 6. Nb3 {[%clk 0:02:33.4]} 6... e6 {[%clk 0:02:52.4]}
7. e4 {[%clk 0:02:31.5]} 7... Bb4 {[%clk 0:02:48.1]} 8. Bd3 {[%clk 0:02:23.3]}
8... Ne5 {[%clk 0:02:43.8]} 9. O-O {[%clk 0:02:14]} 9... Bxc3 {[%clk 0:02:43.1]}
10. bxc3 {[%clk 0:02:12.6]} 10... Qd6 {[%clk 0:02:40.7]} 11. Nd4 {[%clk
0:01:44.2]} 11... Nxd3 {[%clk 0:02:30.2]} 12. Qxd3 {[%clk 0:01:43.2]} 12... O-O
{[%clk 0:01:23.6]} 13. a4 {[%clk 0:01:41.4]} 13... Qe5 {[%clk 0:01:23.7]} 14.
Ba3 {[%clk 0:01:37.6]} 14... Rd8 {[%clk 0:01:18.7]} 15. f3 {[%clk 0:01:22.9]}
15... d5 {[%clk 0:01:16.6]} 16. exd5 {[%clk 0:01:14.5]} 16... exd5 {[%clk
0:01:17.5]} 17. Rfe1 {[%clk 0:01:13.3]} 17... Qg5 {[%clk 0:01:06.7]} 18. cxd5
{[%clk 0:00:52.3]} 18... Nxd5 {[%clk 0:01:04.3]} 19. Bc1 {[%clk 0:00:27]} 19...
Qh4 {[%clk 0:00:53]} 20. Bd2 {[%clk 0:00:25.8]} 20... Bd7 {[%clk 0:00:47]} 21.
Re4 {[%clk 0:00:25.1]} 21... Qf6 {[%clk 0:00:44]} 22. a5 {[%clk 0:00:24.6]}
22... h6 {[%clk 0:00:35]} 23. Rae1 {[%clk 0:00:24]} 23... Bc6 {[%clk 0:00:31.4]}
24. Re5 {[%clk 0:00:22.3]} 24... Rac8 {[%clk 0:00:27.4]} 25. h3 {[%clk
0:00:19.8]} 25... a6 {[%clk 0:00:23.5]} 26. Kh2 {[%clk 0:00:17.2]} 26... Nc7
{[%clk 0:00:22.8]} 27. Re7 {[%clk 0:00:15]} 27... Ne6 {[%clk 0:00:20.6]} 28.
R7xe6 {[%clk 0:00:11.5]} 28... fxe6 {[%clk 0:00:20.4]} 29. Qe3 {[%clk
0:00:11.4]} 29... Bd5 {[%clk 0:00:18.3]} 30. Bc1 {[%clk 0:00:10.1]} 30... Rd7
{[%clk 0:00:16.5]} 31. Ba3 {[%clk 0:00:09.8]} 31... Rdc7 {[%clk 0:00:15.7]} 32.
Bb4 {[%clk 0:00:09.9]} 32... Re8 {[%clk 0:00:14.3]} 33. Qe5 {[%clk 0:00:09.2]}
33... Qxe5+ {[%clk 0:00:13.2]} 34. Rxe5 {[%clk 0:00:09.2]} 34... Kf7 {[%clk
0:00:11.3]} 35. f4 {[%clk 0:00:09.5]} 35... Rd7 {[%clk 0:00:09.5]} 36. g3 {[%clk
0:00:09.1]} 36... Bc4 {[%clk 0:00:08.3]} 37. Kg1 {[%clk 0:00:09.1]} 37... Rd5
{[%clk 0:00:08.4]} 38. Kf2 {[%clk 0:00:08.4]} 38... Rxe5 {[%clk 0:00:08.3]} 39.
fxe5 {[%clk 0:00:08.5]} 39... Bd5 {[%clk 0:00:08.8]} 40. Ke3 {[%clk 0:00:08.3]}
40... Kg6 {[%clk 0:00:09.2]} 41. g4 {[%clk 0:00:06.9]} 41... Rc8 {[%clk
0:00:09.1]} 42. Ne2 {[%clk 0:00:05.9]} 42... Kf7 {[%clk 0:00:07.2]} 43. Nf4
{[%clk 0:00:05.5]} 43... Bc6 {[%clk 0:00:07.5]} 44. Nd3 {[%clk 0:00:04.9]} 44...
Rh8 {[%clk 0:00:06.8]} 45. Nf4 {[%clk 0:00:03.6]} 45... Rh7 {[%clk 0:00:05.2]}
46. h4 {[%clk 0:00:03.4]} 46... Rh8 {[%clk 0:00:05.4]} 47. h5 {[%clk 0:00:03.6]}
47... Rc8 {[%clk 0:00:05.4]} 48. Nd3 {[%clk 0:00:03.1]} 48... Bb5 {[%clk
0:00:03.9]} 49. Nc5 {[%clk 0:00:02.4]} 49... Bc6 {[%clk 0:00:04.3]} 50. Nd3
{[%clk 0:00:02.5]} 50... Rc7 {[%clk 0:00:04.8]} 51. Nf4 {[%clk 0:00:02.1]} 51...
Rd7 {[%clk 0:00:04.9]} 52. Ke2 {[%clk 0:00:01.1]} 52... Rd8 {[%clk 0:00:04.5]}
0-1

[Event "*** Titled Tuesday Blitz"]
[Site "Chess.com"]
[Date "2021.02.02"]
[Round "1"]
[White "adriangschnitzer"]
[Black "MVM2008"]
[Result "0-1"]
[WhiteElo "2485"]
[BlackElo "2123"]
[TimeControl "180+1"]
[EndTime "10:08:07 PST"]
[Termination "MVM2008 won by checkmate"]

1. e4 {[%clk 0:02:59.6]} 1... c6 {[%clk 0:02:56.2]} 2. d4 {[%clk 0:02:58.9]}
2... d5 {[%clk 0:02:56.5]} 3. e5 {[%clk 0:02:59]} 3... c5 {[%clk 0:02:56.6]} 4.
dxc5 {[%clk 0:02:58.5]} 4... Nc6 {[%clk 0:02:56.5]} 5. f4 {[%clk 0:02:57.7]}
5... e6 {[%clk 0:02:54.6]} 6. Be3 {[%clk 0:02:57.4]} 6... d4 {[%clk 0:02:48.4]}
7. Bf2 {[%clk 0:02:55.3]} 7... Nge7 {[%clk 0:02:43.1]} 8. Nf3 {[%clk 0:02:52.3]}
8... Nf5 {[%clk 0:02:37.9]} 9. Bd3 {[%clk 0:02:35.7]} 9... Ne3 {[%clk
0:02:28.3]} 10. Bxe3 {[%clk 0:02:32.7]} 10... dxe3 {[%clk 0:02:29.2]} 11. Nc3
{[%clk 0:02:27.8]} 11... f5 {[%clk 0:02:13.9]} 12. exf6 {[%clk 0:02:21.1]} 12...
Qxf6 {[%clk 0:02:12.8]} 13. O-O {[%clk 0:02:09.1]} 13... Bxc5 {[%clk 0:02:08.3]}
14. Qe2 {[%clk 0:02:07]} 14... Nd4 {[%clk 0:01:55.1]} 15. Nxd4 {[%clk
0:02:02.2]} 15... Qxd4 {[%clk 0:01:44.5]} 16. Bb5+ {[%clk 0:01:51.4]} 16... Ke7
{[%clk 0:00:34.5]} 17. Rad1 {[%clk 0:01:48.1]} 17... Qb4 {[%clk 0:00:23.9]} 18.
f5 {[%clk 0:01:14.6]} 18... a6 {[%clk 0:00:16.6]} 19. fxe6 {[%clk 0:01:03.8]}
19... Bxe6 {[%clk 0:00:12.4]} 20. Rd7+ {[%clk 0:01:01.6]} 20... Bxd7 {[%clk
0:00:06.7]} 21. Nd5+ {[%clk 0:00:56.7]} 21... Kd8 {[%clk 0:00:03.8]} 22. Nxb4
{[%clk 0:00:55]} 22... Bxb5 {[%clk 0:00:03.9]} 23. Qd1+ {[%clk 0:00:27]} 23...
Kc7 {[%clk 0:00:03.8]} 24. Rf7+ {[%clk 0:00:24.7]} 24... Kb6 {[%clk 0:00:03.7]}
25. Nd5+ {[%clk 0:00:18.4]} 25... Ka7 {[%clk 0:00:03.8]} 26. Kh1 {[%clk
0:00:14.7]} 26... Rad8 {[%clk 0:00:03.5]} 27. Rf5 {[%clk 0:00:04.5]} 27... e2
{[%clk 0:00:03.5]} 28. Qf1 {[%clk 0:00:04.6]} 28... Bc4 {[%clk 0:00:04.2]} 29.
Qe1 {[%clk 0:00:03.2]} 29... Rhe8 {[%clk 0:00:03.2]} 30. Nf4 {[%clk 0:00:02.2]}
30... Rd1 {[%clk 0:00:02.8]} 31. Nd3 {[%clk 0:00:02.3]} 31... Rxe1+ {[%clk
0:00:03.2]} 32. Nxe1 {[%clk 0:00:03.2]} 32... Rd8 {[%clk 0:00:03.8]} 33. Rxc5
{[%clk 0:00:03.1]} 33... Rd1 {[%clk 0:00:04.3]} 34. Kg1 {[%clk 0:00:02.7]} 34...
Rxe1+ {[%clk 0:00:04.2]} 35. Kf2 {[%clk 0:00:03.6]} 35... Rf1+ {[%clk
0:00:05.1]} 36. Kg3 {[%clk 0:00:03.7]} 36... e1=Q+ {[%clk 0:00:06]} 37. Kh3
{[%clk 0:00:04.3]} 37... Qe3+ {[%clk 0:00:05.9]} 38. g3 {[%clk 0:00:03.7]} 38...
Be6+ {[%clk 0:00:05.8]} 39. Kh4 {[%clk 0:00:02.8]} 39... Qxc5 {[%clk 0:00:05.7]}
40. g4 {[%clk 0:00:02.7]} 40... g5+ {[%clk 0:00:05]} 41. Kh5 {[%clk 0:00:02.6]}
41... Bf7+ {[%clk 0:00:04.9]} 42. Kh6 {[%clk 0:00:02.3]} 42... Qf8+ {[%clk
0:00:04.8]} 43. Kxg5 {[%clk 0:00:01.3]} 43... Qg7+ {[%clk 0:00:05.1]} 44. Kh4
{[%clk 0:00:02.2]} 44... Qh6+ {[%clk 0:00:05.5]} 45. Kg3 {[%clk 0:00:02.3]}
45... Rg1+ {[%clk 0:00:06]} 46. Kf2 {[%clk 0:00:02.1]} 46... Qxh2+ {[%clk
0:00:05.1]} 47. Ke3 {[%clk 0:00:03]} 47... Rg3+ {[%clk 0:00:04.5]} 48. Kf4
{[%clk 0:00:03.9]} 48... Qf2+ {[%clk 0:00:04.7]} 49. Kg5 {[%clk 0:00:04.8]}
49... h6+ {[%clk 0:00:04.1]} 50. Kh4 {[%clk 0:00:05.7]} 50... Qf4 {[%clk
0:00:03.7]} 51. c4 {[%clk 0:00:04.1]} 51... Qxg4# {[%clk 0:00:03.6]} 0-1

[Event "*** Titled Tuesday Blitz"]
[Site "Chess.com"]
[Date "2021.02.02"]
[Round "1"]
[White "TigrVShlyape"]
[Black "KeithArkell"]
[Result "1/2-1/2"]
[WhiteElo "2853"]
[BlackElo "2453"]
[TimeControl "180+1"]
[EndTime "10:08:08 PST"]
[Termination "Game drawn by agreement"]

1. e4 {[%clk 0:02:22.5]} 1... c6 {[%clk 0:02:59.3]} 2. d4 {[%clk 0:02:22]} 2...
d5 {[%clk 0:02:59.1]} 3. exd5 {[%clk 0:02:22.5]} 3... cxd5 {[%clk 0:02:58.7]} 4.
Bd3 {[%clk 0:02:23]} 4... Nc6 {[%clk 0:02:58.2]} 5. c3 {[%clk 0:02:23.3]} 5...
Nf6 {[%clk 0:02:58.4]} 6. Bf4 {[%clk 0:02:23.4]} 6... Bg4 {[%clk 0:02:58]} 7.
Nf3 {[%clk 0:02:23.5]} 7... e6 {[%clk 0:02:57.3]} 8. Nbd2 {[%clk 0:02:23.3]}
8... Bd6 {[%clk 0:02:57.3]} 9. Bxd6 {[%clk 0:02:23]} 9... Qxd6 {[%clk
0:02:57.3]} 10. O-O {[%clk 0:02:23.4]} 10... O-O {[%clk 0:02:57.3]} 11. Re1
{[%clk 0:02:23.8]} 11... a6 {[%clk 0:02:57.1]} 12. a4 {[%clk 0:02:23.6]} 12...
Rab8 {[%clk 0:02:56.7]} 13. a5 {[%clk 0:02:19.8]} 13... Qc7 {[%clk 0:02:53.9]}
14. Qa4 {[%clk 0:02:19.8]} 14... b5 {[%clk 0:02:49.6]} 15. axb6 {[%clk
0:02:18.7]} 15... Rxb6 {[%clk 0:02:49.7]} 16. b4 {[%clk 0:02:14.9]} 16... Bxf3
{[%clk 0:02:49.3]} 17. Nxf3 {[%clk 0:02:14.1]} 17... g6 {[%clk 0:02:40.7]} 18.
Qc2 {[%clk 0:01:59.6]} 18... Rc8 {[%clk 0:02:26.3]} 19. Qd2 {[%clk 0:01:56.7]}
19... Ra8 {[%clk 0:02:03.5]} 20. Ra4 {[%clk 0:01:51.5]} 20... Kg7 {[%clk
0:01:56.2]} 21. h3 {[%clk 0:01:47.6]} 21... a5 {[%clk 0:01:42.4]} 22. Rea1
{[%clk 0:01:45.8]} 22... Ne4 {[%clk 0:01:42.6]} 23. Bxe4 {[%clk 0:01:36.5]}
23... dxe4 {[%clk 0:01:43.5]} 24. Ng5 {[%clk 0:01:36.6]} 24... Rab8 {[%clk
0:01:31.3]} 25. Nxe4 {[%clk 0:01:30.4]} 25... axb4 {[%clk 0:01:30.3]} 26. d5
{[%clk 0:01:30.5]} 26... exd5 {[%clk 0:01:29.4]} 27. Qxd5 {[%clk 0:01:26.4]}
27... b3 {[%clk 0:01:19.3]} 28. Rb1 {[%clk 0:01:14.8]} 28... b2 {[%clk 0:01:19]}
29. Qd2 {[%clk 0:01:07.9]} 29... Ne5 {[%clk 0:01:16.1]} 30. Qe2 {[%clk
0:01:03.3]} 30... f5 {[%clk 0:01:05.2]} 31. Ng5 {[%clk 0:00:58.7]} 31... Qxc3
{[%clk 0:01:00.3]} 32. Ra7+ {[%clk 0:00:54]} 32... R8b7 {[%clk 0:01:00.3]} 33.
Rxb7+ {[%clk 0:00:44.5]} 33... Rxb7 {[%clk 0:01:01.2]} 34. Kh2 {[%clk
0:00:44.1]} 34... Kf6 {[%clk 0:00:53.6]} 35. f4 {[%clk 0:00:40.3]} 35... h6
{[%clk 0:00:32]} 36. Nh7+ {[%clk 0:00:31.6]} 36... Rxh7 {[%clk 0:00:30.1]} 37.
fxe5+ {[%clk 0:00:32]} 37... Qxe5+ {[%clk 0:00:30.6]} 38. Qxe5+ {[%clk
0:00:32.1]} 38... Kxe5 {[%clk 0:00:31.5]} 39. Rxb2 {[%clk 0:00:32.6]} 39... Rd7
{[%clk 0:00:31.7]} 40. Rb6 {[%clk 0:00:32]} 40... Rd6 {[%clk 0:00:32]} 41. Rb5+
{[%clk 0:00:32.4]} 41... Kf6 {[%clk 0:00:31.8]} 42. h4 {[%clk 0:00:31.2]} 42...
g5 {[%clk 0:00:32]} 43. hxg5+ {[%clk 0:00:31.5]} 43... hxg5 {[%clk 0:00:32.9]}
44. g3 {[%clk 0:00:32]} 44... Rd2+ {[%clk 0:00:31.8]} 45. Kg1 {[%clk 0:00:32.2]}
45... g4 {[%clk 0:00:32.1]} 46. Kf1 {[%clk 0:00:31.9]} 46... Ke6 {[%clk
0:00:32.3]} 47. Ra5 {[%clk 0:00:30.9]} 47... Rd5 {[%clk 0:00:32.2]} 48. Ra6+
{[%clk 0:00:29.8]} 48... Ke5 {[%clk 0:00:32.6]} 49. Ke2 {[%clk 0:00:29.4]} 49...
Ke4 {[%clk 0:00:32.4]} 50. Ra4+ {[%clk 0:00:28.9]} 50... Rd4 {[%clk 0:00:32.8]}
51. Ra8 {[%clk 0:00:28.6]} 51... Rb4 {[%clk 0:00:32.8]} 52. Re8+ {[%clk
0:00:28.6]} 52... Kd5 {[%clk 0:00:33]} 53. Rf8 {[%clk 0:00:27.2]} 53... Ke5
{[%clk 0:00:32.8]} 54. Re8+ {[%clk 0:00:26.6]} 54... Kf6 {[%clk 0:00:32.8]} 55.
Kf2 {[%clk 0:00:26.3]} 55... Rb2+ {[%clk 0:00:32]} 56. Kf1 {[%clk 0:00:26.6]}
56... Rb4 {[%clk 0:00:30.8]} 57. Kf2 {[%clk 0:00:26.7]} 57... Re4 {[%clk
0:00:30.5]} 58. Ra8 {[%clk 0:00:25.8]} 58... Rd4 {[%clk 0:00:29.8]} 59. Ra5
{[%clk 0:00:25.1]} 59... Ke6 {[%clk 0:00:27.4]} 60. Ra8 {[%clk 0:00:25.1]} 60...
Rd5 {[%clk 0:00:26.3]} 61. Re8+ {[%clk 0:00:24.7]} 61... Kf6 {[%clk 0:00:26.1]}
62. Kf1 {[%clk 0:00:24.4]} 62... Re5 {[%clk 0:00:25.5]} 63. Ra8 {[%clk
0:00:24.1]} 63... Ke6 {[%clk 0:00:24.4]} 64. Kf2 {[%clk 0:00:24.2]} 64... Rd5
{[%clk 0:00:22.2]} 65. Re8+ {[%clk 0:00:24.1]} 65... Kf6 {[%clk 0:00:21.2]} 66.
Kf1 {[%clk 0:00:23.1]} 66... Re5 {[%clk 0:00:20.4]} 1/2-1/2

[Event "*** Titled Tuesday Blitz"]
[Site "Chess.com"]
[Date "2021.02.02"]
[Round "1"]
[White "Love_craft"]
[Black "HouseOfDurin"]
[Result "1-0"]
[WhiteElo "2503"]
[BlackElo "2103"]
[TimeControl "180+1"]
[EndTime "10:08:08 PST"]
[Termination "Love_craft won by checkmate"]

1. Nf3 {[%clk 0:03:00.9]} 1... c5 {[%clk 0:03:00.1]} 2. e4 {[%clk 0:03:00.1]}
2... Nc6 {[%clk 0:03:00.6]} 3. d3 {[%clk 0:03:00.5]} 3... e5 {[%clk 0:03:01.1]}
4. Nc3 {[%clk 0:02:59.3]} 4... g6 {[%clk 0:03:01.2]} 5. h4 {[%clk 0:02:59.1]}
5... h6 {[%clk 0:02:57.8]} 6. h5 {[%clk 0:02:56.9]} 6... g5 {[%clk 0:02:57.5]}
7. Be2 {[%clk 0:02:57.3]} 7... f5 {[%clk 0:02:54.7]} 8. Nd5 {[%clk 0:02:47.1]}
8... d6 {[%clk 0:02:48.3]} 9. exf5 {[%clk 0:02:26.1]} 9... Bxf5 {[%clk
0:02:47.5]} 10. Nh2 {[%clk 0:02:22.5]} 10... Nf6 {[%clk 0:02:46]} 11. Ne3 {[%clk
0:02:21.8]} 11... Be6 {[%clk 0:02:41.1]} 12. Nhg4 {[%clk 0:02:21.9]} 12... Nxg4
{[%clk 0:02:32.8]} 13. Bxg4 {[%clk 0:02:22.8]} 13... Qd7 {[%clk 0:02:31.9]} 14.
Nd5 {[%clk 0:02:03.6]} 14... O-O-O {[%clk 0:02:09.5]} 15. Bxe6 {[%clk
0:01:14.7]} 15... Qxe6 {[%clk 0:02:10.4]} 16. c4 {[%clk 0:01:15.3]} 16... Ne7
{[%clk 0:01:45.2]} 17. Nc3 {[%clk 0:01:04.6]} 17... d5 {[%clk 0:01:39.3]} 18.
cxd5 {[%clk 0:01:03.4]} 18... Nxd5 {[%clk 0:01:40.2]} 19. O-O {[%clk 0:00:59.7]}
19... Nb4 {[%clk 0:01:18.8]} 20. Qa4 {[%clk 0:00:41.5]} 20... a6 {[%clk
0:01:08.5]} 21. a3 {[%clk 0:00:25.3]} 21... Nxd3 {[%clk 0:01:08]} 22. b4 {[%clk
0:00:25.7]} 22... cxb4 {[%clk 0:01:01.1]} 23. axb4 {[%clk 0:00:26.1]} 23... Nxb4
{[%clk 0:01:00]} 24. Be3 {[%clk 0:00:13.7]} 24... Qc6 {[%clk 0:00:38.2]} 25. Qb3
{[%clk 0:00:10.9]} 25... Rd3 {[%clk 0:00:16.7]} 26. Rfc1 {[%clk 0:00:10.4]}
26... Kb8 {[%clk 0:00:16.5]} 27. Qb2 {[%clk 0:00:07.9]} 27... Rxe3 {[%clk
0:00:15]} 28. fxe3 {[%clk 0:00:07.6]} 28... Nd3 {[%clk 0:00:15.2]} 29. Qd2
{[%clk 0:00:04.2]} 29... Nxc1 {[%clk 0:00:15.3]} 30. Rxc1 {[%clk 0:00:03.5]}
30... Bb4 {[%clk 0:00:15.3]} 31. Qd3 {[%clk 0:00:02.9]} 31... Rc8 {[%clk
0:00:12.3]} 32. Ne2 {[%clk 0:00:02.9]} 32... Qd6 {[%clk 0:00:05.7]} 33. Rxc8+
{[%clk 0:00:02.8]} 33... Kxc8 {[%clk 0:00:06.6]} 34. Qc4+ {[%clk 0:00:03.3]}
34... Kb8 {[%clk 0:00:05.1]} 35. Ng3 {[%clk 0:00:03.7]} 35... Qd1+ {[%clk
0:00:03.7]} 36. Kh2 {[%clk 0:00:04]} 36... Qd2 {[%clk 0:00:03.9]} 37. Qg8+
{[%clk 0:00:03.6]} 37... Ka7 {[%clk 0:00:04.2]} 38. Qe6 {[%clk 0:00:02.9]} 38...
Qxe3 {[%clk 0:00:04]} 39. Qxh6 {[%clk 0:00:02.9]} 39... Bc5 {[%clk 0:00:03]} 40.
Qg6 {[%clk 0:00:01.1]} 40... Qg1+ {[%clk 0:00:02.3]} 41. Kh3 {[%clk 0:00:01.7]}
41... Qe3 {[%clk 0:00:02.6]} 42. h6 {[%clk 0:00:01.8]} 42... Qd3 {[%clk
0:00:01.1]} 43. Qxd3 {[%clk 0:00:01.4]} 43... e4 {[%clk 0:00:01.2]} 44. Qd5
{[%clk 0:00:01.8]} 44... Bb6 {[%clk 0:00:01.6]} 45. Qe6 {[%clk 0:00:02.6]} 45...
Bc7 {[%clk 0:00:01.5]} 46. Qxe4 {[%clk 0:00:03.1]} 46... Bxg3 {[%clk 0:00:01.8]}
47. Kxg3 {[%clk 0:00:03.8]} 47... g4 {[%clk 0:00:02.7]} 48. Kxg4 {[%clk
0:00:04.6]} 48... a5 {[%clk 0:00:03.6]} 49. Qf5 {[%clk 0:00:05.4]} 49... a4
{[%clk 0:00:04.5]} 50. h7 {[%clk 0:00:06.3]} 50... Ka6 {[%clk 0:00:05.4]} 51.
Qb1 {[%clk 0:00:06.8]} 51... b5 {[%clk 0:00:06.3]} 52. Qa1 {[%clk 0:00:07.7]}
52... a3 {[%clk 0:00:07.2]} 53. h8=Q {[%clk 0:00:08.5]} 53... Ka5 {[%clk
0:00:08.1]} 54. Qhc3+ {[%clk 0:00:08.8]} 54... Kb6 {[%clk 0:00:09]} 55. Qcxa3
{[%clk 0:00:08.8]} 55... Kc6 {[%clk 0:00:08.9]} 56. Qa7 {[%clk 0:00:09.7]} 56...
Kd5 {[%clk 0:00:09.8]} 57. Q1d4+ {[%clk 0:00:09.5]} 57... Kc6 {[%clk 0:00:08.5]}
58. Qdc5# {[%clk 0:00:09.2]} 1-0